bitfinex/quotes_BTCUSD_20240902
["timestamp","ask_amount","ask_price","bid_price","bid_amount"]
[1725257626673,0.64449882,57874.0,57873.0,0.182098]
[1725257627135,1.36656652,57874.0,57873.0,0.177098]
[1725257627364,1.46656652,57874.0,57873.0,0.177098]
[1725257627602,1.03818752,57874.0,57873.0,0.177098]
[1725257627831,1.46296952,57874.0,57873.0,0.177098]
[1725257628263,1.17806952,57874.0,57873.0,0.177098]
[1725257628467,1.12628482,57874.0,57873.0,0.177098]
[1725257629948,1.20395749,57874.0,57873.0,0.177098]
[1725257630163,1.12628482,57874.0,57873.0,0.177098]
[1725257631504,0.87046216,57874.0,57873.0,0.182098]
[1725257631758,0.91042703,57874.0,57873.0,0.182098]
[1725257632579,0.85861716,57874.0,57873.0,0.182098]
[1725257632821,0.91043518,57874.0,57873.0,0.182098]
[1725257633245,1.15233918,57874.0,57873.0,0.182098]
[1725257633451,1.02430218,57874.0,57873.0,0.182098]
[1725257634087,0.79631733,57874.0,57873.0,0.182098]
[1725257634501,0.74449931,57874.0,57873.0,0.182098]
[1725257634711,0.79632212,57874.0,57873.0,0.182098]
[1725257634920,0.78240297,57874.0,57873.0,0.182098]
[1725257635573,0.73058016,57874.0,57873.0,0.182098]
[1725257636325,0.72364516,57874.0,57873.0,0.182098]
[1725257636958,0.48174116,57874.0,57873.0,0.182098]
[1725257637166,0.11888516,57874.0,57873.0,0.2003478]
[1725257637631,0.23983716,57874.0,57873.0,0.2003478]
[1725257637865,0.23983716,57874.0,57873.0,0.182098]
[1725257638277,0.11888516,57874.0,57873.0,0.182098]
[1725257638490,0.01888516,57874.0,57873.0,0.182098]
[1725257638699,0.000818,57874.0,57873.0,0.544961]
[1725257638935,0.000818,57874.0,57873.0,0.63815868]
[1725257639136,0.000818,57874.0,57873.0,0.88206768]
[1725257640035,0.02792957,57874.0,57873.0,0.88206768]
[1725257642452,0.02792957,57874.0,57873.0,1.12397668]
[1725257643171,0.02792957,57874.0,57873.0,1.12897668]
[1725257645366,0.1,57889.0,57888.0,0.44826423]
[1725257645572,0.000818,57892.0,57891.0,0.0785]
[1725257645780,0.000818,57892.0,57891.0,0.1808]
[1725257646207,0.000818,57892.0,57891.0,0.301716]
[1725257646415,0.000818,57892.0,57891.0,0.30517028]
[1725257646623,0.000818,57892.0,57891.0,0.54700328]
[1725257646841,0.000818,57892.0,57891.0,0.64711314]
[1725257647066,0.000818,57892.0,57891.0,0.28090986]
[1725257647290,0.000818,57892.0,57891.0,0.1808]
[1725257647950,0.000818,57892.0,57891.0,0.301716]
[1725257648168,0.000818,57892.0,57891.0,0.1808]
[1725257648602,0.100818,57892.0,57891.0,0.1808]
[1725257648815,0.000818,57892.0,57891.0,0.792382]
[1725257649033,0.000818,57892.0,57891.0,0.89299098]
[1725257651915,0.02791986,57892.0,57891.0,0.89299098]
[1725257652535,0.02791986,57892.0,57891.0,0.88899098]
[1725257653092,0.02791986,57892.0,57891.0,0.89299098]
[1725257653292,0.02791986,57892.0,57891.0,0.88899098]
[1725257653676,0.02791986,57892.0,57891.0,1.13082398]
[1725257656617,0.000818,57892.0,57891.0,1.13082398]
[1725257656864,0.000818,57892.0,57891.0,1.13582398]
[1725257657057,0.241763,57908.0,57902.0,0.1798]
[1725257657728,0.362644,57908.0,57907.0,0.005]
[1725257657940,0.362644,57908.0,57907.0,0.007]
[1725257658616,0.362644,57908.0,57907.0,0.005]
[1725257659043,0.462644,57908.0,57907.0,0.005]
[1725257659947,0.48974404,57908.0,57907.0,0.005]
[1725257660445,0.48974404,57908.0,57907.0,0.007]
[1725257661576,0.73232504,57908.0,57907.0,0.007]
[1725257663216,0.81202504,57908.0,57907.0,0.007]
[1725257663454,1.05378804,57908.0,57907.0,0.007]
[1725257663694,1.06704498,57908.0,57907.0,0.007]
[1725257666561,1.03994494,57908.0,57907.0,0.007]
[1725257666987,1.03994494,57908.0,57907.0,0.002]
[1725257668346,1.28170794,57908.0,57907.0,0.002]
[1725257669159,1.026688,57908.0,57907.0,0.002]
[1725257669669,1.026688,57908.0,57907.0,0.007]
[1725257669848,0.97408966,57908.0,57907.0,0.007]
[1725257670744,0.97408966,57908.0,57907.0,0.01785]
[1725257670745,0.49056366,57908.0,57907.0,0.01785]
[1725257670962,0.12791966,57908.0,57907.0,0.01785]
[1725257671179,0.12791966,57908.0,57907.0,0.19515]
[1725257672267,0.02791966,57908.0,57907.0,0.19515]
[1725257673082,0.02791966,57908.0,57907.0,0.19715]
[1725257673899,0.02791966,57908.0,57907.0,0.20060337]
[1725257675139,0.02791966,57908.0,57907.0,0.32148637]
[1725257675354,0.02791966,57908.0,57907.0,0.20060337]
[1725257676519,0.02791966,57908.0,57907.0,0.56325237]
[1725257676769,0.000818,57908.0,57907.0,0.80501837]
[1725257677267,0.01806716,57922.0,57921.0,0.002]
[1725257677503,0.13891916,57922.0,57921.0,0.02474]
[1725257677732,0.38062416,57922.0,57921.0,0.02474]
[1725257677974,0.38872651,57922.0,57921.0,0.02474]
[1725257679177,0.48872651,57922.0,57921.0,0.02474]
[1725257680104,0.51582026,57922.0,57921.0,0.02474]
[1725257680577,0.14516091,57922.0,57921.0,0.16598123]
[1725257681072,0.02709375,57922.0,57921.0,0.16598123]
[1725257681303,0.12709375,57922.0,57921.0,0.16598123]
[1725257682031,0.12709375,57922.0,57921.0,0.24468123]
[1725257682265,0.02709375,57922.0,57921.0,0.70684323]
[1725257682485,0.000818,57932.0,57931.0,0.002]
[1725257682725,0.363311,57932.0,57931.0,0.002]
[1725257682949,0.3988136,57932.0,57931.0,0.002]
[1725257683208,0.39040187,57932.0,57931.0,0.002]
[1725257683693,0.12084,57928.0,57927.0,0.002]
[1725257683913,0.12084,57928.0,57927.0,0.01666936]
[1725257684558,0.1,57928.0,57927.0,0.01666936]
[1725257685668,0.120839,57928.0,57927.0,0.01666936]
[1725257686127,0.220839,57928.0,57927.0,0.01666936]
[1725257687427,0.220839,57928.0,57927.0,0.002]
[1725257688510,0.462518,57928.0,57927.0,0.002]
[1725257688803,0.462518,57928.0,57927.0,0.007]
[1725257689008,0.462518,57928.0,57927.0,0.002]
[1725257689009,1.09046077,57928.0,57927.0,0.002]
[1725257689237,1.20972719,57928.0,57927.0,0.002]
[1725257689466,1.15573039,57928.0,57927.0,0.002]
[1725257690799,1.39740939,57928.0,57927.0,0.002]
[1725257691226,0.1706,57923.0,57921.0,0.005]
[1725257691436,0.29145,57923.0,57922.0,0.007]
[1725257691642,0.88844128,57923.0,57922.0,0.007]
[1725257692073,0.88844128,57923.0,57922.0,0.005]
[1725257692285,1.13014128,57923.0,57922.0,0.005]
[1725257693195,0.60427,57921.0,57920.0,0.005]
[1725257693413,0.70427,57921.0,57920.0,0.005]
[1725257693650,0.945978,57921.0,57920.0,0.005]
[1725257694503,0.945978,57921.0,57920.0,0.007]
[1725257695206,0.70427,57921.0,57920.0,0.007]
[1725257695417,0.70427,57921.0,57920.0,0.02497]
[1725257696055,0.95419884,57921.0,57920.0,0.007]
[1725257696813,0.71249084,57921.0,57920.0,0.007]
[1725257697718,0.95419884,57921.0,57920.0,0.007]
[1725257698836,0.71249084,57921.0,57920.0,0.007]
[1725257699935,0.73958546,57921.0,57920.0,0.007]
[1725257700453,1.05659346,57921.0,57920.0,0.007]
[1725257700651,1.07018702,57921.0,57920.0,0.007]
[1725257701774,0.82847902,57921.0,57920.0,0.007]
[1725257701991,0.81488546,57921.0,57920.0,0.007]
[1725257702428,0.73958546,57921.0,57920.0,0.007]
[1725257703504,0.73136462,57921.0,57920.0,0.1783]
[1725257703727,0.48965662,57921.0,57920.0,0.19613]
[1725257703954,0.12709462,57921.0,57920.0,0.19613]
[1725257704161,0.24794862,57921.0,57920.0,0.19613]
[1725257706622,0.220854,57921.0,57920.0,0.19613]
[1725257706838,0.1,57921.0,57920.0,0.1783]
[1725257707069,0.120854,57921.0,57920.0,0.1783]
[1725257707289,0.120854,57921.0,57920.0,0.1803]
[1725257707499,0.120854,57921.0,57920.0,0.22454022]
[1725257707715,0.120852,57923.0,57922.0,0.002]
[1725257707929,0.220841,57927.0,57926.0,0.1012]
[1725257708131,0.220841,57927.0,57926.0,0.12544412]
[1725257708410,0.462524,57927.0,57926.0,0.1012]
[1725257710743,0.462524,57927.0,57926.0,0.007]
[1725257711155,0.48961499,57927.0,57926.0,0.007]
[1725257714686,0.48961499,57927.0,57926.0,0.0803]
[1725257716289,0.24793199,57927.0,57926.0,0.0803]
[1725257716506,0.12709099,57927.0,57926.0,0.12460417]
[1725257716734,0.1,57927.0,57926.0,0.12460417]
[1725257717179,0.1,57927.0,57926.0,0.24889946]
[1725257717409,0.220835,57930.0,57929.0,0.007]
[1725257717618,0.220835,57930.0,57929.0,0.03189015]
[1725257717830,0.1,57930.0,57929.0,0.03189015]
[1725257718055,0.100817,57931.0,57930.0,0.007]
[1725257718279,0.000817,57931.0,57930.0,0.36500618]
[1725257718496,0.000817,57931.0,57930.0,0.24417118]
[1725257718714,0.12165,57931.0,57930.0,0.24762325]
[1725257718924,0.22165,57931.0,57930.0,0.24417118]
[1725257719389,0.12165,57931.0,57930.0,0.24417118]
[1725257720041,0.02790414,57931.0,57930.0,0.24762336]
[1725257720252,0.02790414,57931.0,57930.0,0.24417118]
[1725257720920,0.14873714,57931.0,57930.0,0.1052]
[1725257721201,0.14873714,57931.0,57930.0,0.007]
[1725257721649,0.39040314,57931.0,57930.0,0.007]
[1725257724271,1.09446527,57931.0,57930.0,0.002]
[1725257724512,1.36899113,57931.0,57930.0,0.002]
[1725257724726,1.55901027,57931.0,57930.0,0.002]
[1725257724964,1.5888605,57931.0,57930.0,0.002]
[1725257725178,1.38830114,57931.0,57930.0,0.002]
[1725257725832,1.44827902,57931.0,57930.0,0.002]
[1725257726487,0.946648,57931.0,57930.0,0.007]
[1725257727872,0.704982,57931.0,57930.0,0.007]
[1725257728519,0.463316,57931.0,57930.0,0.0985]
[1725257728726,0.463316,57931.0,57930.0,0.12160923]
[1725257729593,0.22165,57931.0,57930.0,0.12160923]
[1725257730465,0.23971716,57931.0,57930.0,0.12160923]
[1725257730694,0.23971716,57931.0,57930.0,0.0985]
[1725257730919,0.11888416,57931.0,57930.0,0.0985]
[1725257731145,0.11888416,57931.0,57930.0,0.1005]
[1725257731146,0.04597304,57931.0,57930.0,0.1005]
[1725257731597,0.04597304,57931.0,57930.0,0.0985]
[1725257732720,0.04597304,57931.0,57930.0,0.461005]
[1725257732935,0.04597304,57931.0,57930.0,0.55403789]
[1725257734275,0.04597304,57931.0,57930.0,0.79570789]
[1725257734511,0.04597304,57931.0,57930.0,0.87020789]
[1725257734954,0.04597304,57931.0,57930.0,0.62853789]
[1725257735177,0.04597304,57931.0,57930.0,0.007]
[1725257735857,0.16680604,57931.0,57930.0,0.007]
[1725257736495,0.13971716,57931.0,57930.0,0.007]
[1725257737354,0.01888416,57931.0,57930.0,0.007]
[1725257737566,0.01888416,57931.0,57930.0,0.07599649]
[1725257738002,0.01888416,57931.0,57930.0,0.15059649]
[1725257738680,0.01888416,57931.0,57930.0,0.0816]
[1725257739768,0.01888416,57931.0,57930.0,0.0836]
[1725257740470,0.01888416,57931.0,57930.0,0.204435]
[1725257741177,0.01888416,57931.0,57930.0,0.79092688]
[1725257742045,0.000817,57931.0,57930.0,0.79092688]
[1725257742262,0.000817,57931.0,57930.0,0.90940156]
[1725257747374,0.000817,57931.0,57930.0,0.90540156]
[1725257747613,0.241623,57942.0,57933.0,0.241655]
[1725257747830,0.120816,57939.0,57938.0,0.002]
[1725257748425,0.120813,57941.0,57938.0,0.001]
[1725257748639,0.120813,57941.0,57940.0,0.001]
[1725257748789,0.220813,57941.0,57940.0,0.001]
[1725257748996,0.24789844,57941.0,57940.0,0.01576929]
[1725257749199,0.23888016,57941.0,57940.0,0.01576929]
[1725257750259,0.23888016,57941.0,57940.0,0.01476929]
[1725257750461,0.23888016,57941.0,57940.0,0.01676929]
[1725257750664,0.23888016,57941.0,57940.0,0.19516929]
[1725257751125,0.23988016,57941.0,57940.0,0.20716929]
[1725257751708,0.11906716,57941.0,57940.0,0.13346929]
[1725257751934,0.11906716,57941.0,57940.0,0.25428329]
[1725257751935,0.01906716,57941.0,57940.0,0.25428329]
[1725257752992,0.01906716,57941.0,57940.0,0.49936369]
[1725257753644,0.01906716,57941.0,57940.0,0.018]
[1725257753855,0.04615129,57941.0,57940.0,0.018]
[1725257754065,0.0597473,57941.0,57940.0,0.018]
[1725257754290,0.03266317,57941.0,57940.0,0.018]
[1725257755164,0.13987916,57941.0,57940.0,0.018]
[1725257757776,0.13987916,57941.0,57940.0,0.0320822]
[1725257759130,0.13987916,57941.0,57940.0,0.018]
[1725257759373,0.38150416,57941.0,57940.0,0.017]
[1725257759625,0.38150416,57941.0,57940.0,0.018]
[1725257760312,0.62312916,57941.0,57940.0,0.018]
[1725257761171,0.38150416,57941.0,57940.0,0.018]
[1725257763870,0.4085903,57941.0,57940.0,0.018]
[1725257765317,0.6502153,57941.0,57940.0,0.018]
[1725257766628,0.13987916,57941.0,57940.0,0.018]
[1725257766842,0.38150416,57941.0,57940.0,0.018]
[1725257767063,0.38150416,57941.0,57940.0,0.03412412]
[1725257767496,0.38150416,57941.0,57940.0,0.20702412]
[1725257768088,0.1096718,57941.0,57940.0,0.20702412]
[1725257768499,0.3512968,57941.0,57940.0,0.20702412]
[1725257768695,0.36936396,57941.0,57940.0,0.20702412]
[1725257769125,0.36910935,57941.0,57940.0,0.20702412]
[1725257769503,0.39619561,57941.0,57940.0,0.20702412]
[1725257769709,0.04515342,57941.0,57940.0,0.20702412]
[1725257769914,0.04515342,57941.0,57940.0,0.21047553]
[1725257770544,0.01806716,57941.0,57940.0,0.21047553]
[1725257771094,0.01071322,57941.0,57940.0,0.21047553]
[1725257771542,0.000817,57943.0,57942.0,0.001]
[1725257771984,0.000817,57943.0,57942.0,0.006]
[1725257772249,0.01888416,57943.0,57942.0,0.09394905]
[1725257772492,0.01888416,57943.0,57942.0,0.4529277]
[1725257772710,0.01888416,57943.0,57942.0,0.76562322]
[1725257772935,0.01488416,57943.0,57942.0,0.77562322]
[1725257773406,0.01488416,57943.0,57942.0,0.77762322]
[1725257773407,0.001,57943.0,57942.0,0.77762322]
[1725257773622,0.02808274,57943.0,57942.0,0.77762322]
[1725257773828,0.02808274,57943.0,57942.0,0.77462322]
[1725257774455,0.02808274,57943.0,57942.0,0.53600322]
[1725257774874,0.02808274,57943.0,57942.0,0.53300322]
[1725257775094,0.02808274,57943.0,57942.0,0.77462322]
[1725257775292,0.02808274,57943.0,57942.0,0.77762322]
[1725257775722,0.001,57943.0,57942.0,1.18834322]
[1725257776563,0.02625716,57950.0,57949.0,0.534486]
[1725257776564,0.02472248,57950.0,57949.0,0.534486]
[1725257776781,0.01334034,57950.0,57949.0,0.6189837]
[1725257776981,0.000818,57956.0,57949.0,0.6189837]
[1725257776982,8.056e-05,57956.0,57955.0,0.001]
[1725257777243,8.056e-05,57956.0,57955.0,0.0854977]
[1725257777443,8.056e-05,57956.0,57955.0,0.10612627]
[1725257777646,8.056e-05,57956.0,57955.0,0.10512627]
[1725257778090,8.056e-05,57956.0,57955.0,0.02062857]
[1725257778350,8.056e-05,57956.0,57955.0,0.02162857]
[1725257778826,8.056e-05,57956.0,57955.0,0.02062857]
[1725257779038,0.02715871,57956.0,57955.0,0.02062857]
[1725257779488,0.02715871,57956.0,57955.0,0.02162857]
[1725257780178,8.056e-05,57956.0,57955.0,0.02162857]
[1725257781780,8.056e-05,57956.0,57955.0,0.02662857]
[1725257783064,0.0271584,57956.0,57955.0,0.02662857]
[1725257783278,0.02560059,57956.0,57955.0,0.02662857]
[1725257784321,0.02560059,57956.0,57955.0,0.02752727]
[1725257785375,0.02641759,57956.0,57955.0,0.02752727]
[1725257786247,0.02641759,57956.0,57955.0,0.79684227]
[1725257786470,0.02641759,57956.0,57955.0,0.55527627]
[1725257786688,0.000817,57956.0,57955.0,0.79684227]
[1725257787963,0.000817,57956.0,57955.0,0.55527627]
[1725257788613,0.000817,57956.0,57955.0,0.56927627]
[1725257790624,0.000817,57956.0,57955.0,0.32771027]
[1725257790834,0.000817,57956.0,57955.0,0.44785233]
[1725257791510,0.121598,57956.0,57955.0,0.0208987]
[1725257791718,0.36316,57956.0,57955.0,0.0208987]
[1725257791925,0.604722,57956.0,57955.0,0.0208987]
[1725257792817,0.93835116,57956.0,57955.0,0.0208987]
[1725257800018,0.93835116,57956.0,57955.0,0.03143651]
[1725257801528,0.86435116,57956.0,57955.0,0.0198987]
[1725257801784,1.77011457,57956.0,57955.0,0.0198987]
[1725257802050,1.66899863,57956.0,57955.0,0.0198987]
[1725257802278,1.71454405,57956.0,57955.0,0.0198987]
[1725257802756,1.61117472,57956.0,57955.0,0.0058987]
[1725257802977,1.61117472,57956.0,57955.0,0.0138987]
[1725257803677,1.61117472,57956.0,57955.0,0.0088987]
[1725257804432,1.61117472,57956.0,57955.0,0.0008987]
[1725257804658,1.61117472,57956.0,57955.0,0.0038987]
[1725257804874,1.5656293,57956.0,57955.0,0.0038987]
[1725257805121,1.5656293,57956.0,57955.0,0.0008987]
[1725257808343,1.61617472,57956.0,57955.0,7e-07]
[1725257808619,0.845687,57941.0,57940.0,0.0008987]
[1725257808872,1.38865052,57941.0,57940.0,0.0008987]
[1725257809126,1.88672342,57941.0,57940.0,0.0008987]
[1725257809361,2.11601074,57941.0,57940.0,0.0008987]
[1725257809873,1.98672342,57941.0,57940.0,0.0008987]
[1725257810099,2.25134842,57941.0,57940.0,7e-07]
[1725257810329,1.92570709,57941.0,57940.0,7e-07]
[1725257810816,1.91110742,57941.0,57940.0,7e-07]
[1725257811291,1.870562,57941.0,57940.0,7e-07]
[1725257811802,1.865562,57941.0,57940.0,7e-07]
[1725257812051,1.873562,57941.0,57940.0,0.0010007]
[1725257812310,1.76105282,57941.0,57940.0,0.0010007]
[1725257812577,1.47060247,57941.0,57940.0,0.0010007]
[1725257812817,1.44477673,57941.0,57940.0,0.0010007]
[1725257813045,1.367312,57941.0,57940.0,0.0010007]
[1725257813270,1.41894063,57941.0,57940.0,0.0010007]
[1725257813519,1.42733129,57941.0,57940.0,0.0010007]
[1725257814004,1.33403129,57941.0,57940.0,0.0060007]
[1725257814267,1.28240266,57941.0,57940.0,0.0070007]
[1725257816944,1.04077766,57941.0,57940.0,0.0070007]
[1725257818786,1.03277766,57941.0,57940.0,0.0060007]
[1725257820103,1.04177766,57941.0,57940.0,0.0070007]
[1725257820556,1.03277766,57941.0,57940.0,0.0060007]
[1725257821009,1.03477766,57941.0,57940.0,0.0060007]
[1725257823222,1.03277766,57941.0,57940.0,0.0060007]
[1725257823443,0.95407766,57941.0,57940.0,0.0070007]
[1725257824102,0.97214482,57941.0,57940.0,0.0060007]
[1725257824398,0.38050416,57941.0,57940.0,0.02460077]
[1725257824608,0.13887916,57941.0,57940.0,0.10440077]
[1725257824819,0.120812,57941.0,57940.0,0.10440077]
[1725257825031,0.120812,57941.0,57940.0,0.20730077]
[1725257825248,0.120809,57943.0,57942.0,0.001]
[1725257825468,0.120809,57943.0,57942.0,0.0851]
[1725257825692,0.362425,57943.0,57942.0,0.0851]
[1725257826191,0.604041,57943.0,57942.0,0.0851]
[1725257826404,0.704041,57943.0,57942.0,0.0851]
[1725257828238,0.705041,57943.0,57942.0,0.0931]
[1725257828639,0.705041,57943.0,57942.0,0.014]
[1725257829523,0.463425,57943.0,57942.0,0.014]
[1725257829737,0.463425,57943.0,57942.0,0.03323007]
[1725257830155,0.704041,57943.0,57942.0,0.02523007]
[1725257830402,0.704041,57943.0,57942.0,0.011]
[1725257830616,0.462425,57943.0,57942.0,0.011]
[1725257830827,0.462425,57943.0,57942.0,0.006]
[1725257831269,0.463425,57943.0,57942.0,0.013]
[1725257831752,0.462425,57943.0,57942.0,0.006]
[1725257832201,0.462425,57943.0,57942.0,0.0864]
[1725257832648,0.704041,57943.0,57942.0,0.0864]
[1725257832861,0.462425,57943.0,57942.0,0.0864]
[1725257833075,0.463242,57943.0,57942.0,0.0864]
[1725257833517,0.463242,57943.0,57942.0,0.0814]
[1725257833950,0.464242,57943.0,57942.0,0.0884]
[1725257834374,0.463242,57943.0,57942.0,0.0814]
[1725257834819,0.463242,57943.0,57942.0,0.0864]
[1725257835241,0.463242,57943.0,57942.0,0.0814]
[1725257835454,0.464242,57943.0,57942.0,0.0884]
[1725257837236,0.464242,57943.0,57942.0,0.0814]
[1725257837456,0.463242,57943.0,57942.0,0.0814]
[1725257837668,0.463242,57943.0,57942.0,0.0864]
[1725257838113,0.463242,57943.0,57942.0,0.0814]
[1725257838330,0.463242,57943.0,57942.0,0.0884]
[1725257838544,0.464242,57943.0,57942.0,0.0884]
[1725257838966,0.463242,57943.0,57942.0,0.0814]
[1725257839506,0.463242,57943.0,57942.0,0.0864]
[1725257839833,0.704858,57943.0,57942.0,0.011]
[1725257840046,0.704858,57943.0,57942.0,0.011237]
[1725257840047,0.46206518,57943.0,57942.0,0.011237]
[1725257840259,0.70368118,57943.0,57942.0,0.011237]
[1725257840470,0.70368118,57943.0,57942.0,0.006237]
[1725257840701,0.78188118,57943.0,57942.0,0.006237]
[1725257840937,0.78288118,57943.0,57942.0,0.013237]
[1725257841377,0.78188118,57943.0,57942.0,0.006237]
[1725257841595,0.78188118,57943.0,57942.0,0.011237]
[1725257842019,0.78188118,57943.0,57942.0,0.006237]
[1725257842443,0.78288118,57943.0,57942.0,0.013237]
[1725257843831,1.02449718,57943.0,57942.0,0.013237]
[1725257844055,1.02349718,57943.0,57942.0,0.006237]
[1725257844275,1.02349718,57943.0,57942.0,0.010237]
[1725257844928,1.02349718,57943.0,57942.0,0.006237]
[1725257845142,1.02449718,57943.0,57942.0,0.013237]
[1725257845776,1.02349718,57943.0,57942.0,0.006237]
[1725257846193,1.07515235,57943.0,57942.0,0.006237]
[1725257846438,0.70368118,57943.0,57942.0,0.188037]
[1725257846674,0.70368118,57943.0,57942.0,0.189037]
[1725257846895,0.70368118,57943.0,57942.0,0.20784077]
[1725257847370,0.70368118,57943.0,57942.0,0.20984077]
[1725257848692,0.70368118,57943.0,57942.0,0.20784077]
[1725257849120,0.70468118,57943.0,57942.0,0.21384077]
[1725257849342,0.22144918,57943.0,57942.0,0.21384077]
[1725257850631,0.22044918,57943.0,57942.0,0.20784077]
[1725257851059,0.100817,57943.0,57942.0,0.21284077]
[1725257851508,0.100817,57943.0,57942.0,0.20784077]
[1725257851754,0.001817,57943.0,57942.0,0.33465077]
[1725257851984,0.001817,57943.0,57942.0,0.81789077]
[1725257852208,0.001817,57943.0,57942.0,0.81989077]
[1725257852442,0.000817,57943.0,57942.0,0.81389077]
[1725257853111,0.001817,57943.0,57942.0,0.82689077]
[1725257853781,0.001817,57943.0,57942.0,0.82489077]
[1725257854942,0.000817,57943.0,57942.0,0.81189077]
[1725257854948,0.000817,57943.0,57942.0,0.81389077]
[1725257855162,0.000817,57943.0,57942.0,0.81889077]
[1725257855399,0.001817,57943.0,57942.0,1.07451077]
[1725257856912,0.001817,57943.0,57942.0,1.07540947]
[1725257857771,0.001817,57943.0,57942.0,1.07240947]
[1725257858204,0.001817,57943.0,57942.0,1.07540947]
[1725257858411,0.001817,57943.0,57942.0,1.07240947]
[1725257859068,0.001817,57943.0,57942.0,1.07540947]
[1725257859295,0.001817,57943.0,57942.0,1.08540947]
[1725257860396,1.13176481,57958.0,57957.0,0.006]
[1725257860826,1.13176481,57958.0,57953.0,0.14087989]
[1725257860827,0.128962,57961.0,57959.0,0.006]
[1725257861037,0.81164942,57963.0,57953.0,0.14087989]
[1725257861038,0.241533,57963.0,57962.0,0.006]
[1725257861254,0.362299,57963.0,57962.0,0.006]
[1725257861462,0.37589953,57963.0,57962.0,0.006]
[1725257861675,0.37589953,57963.0,57962.0,0.003]
[1725257861885,0.362299,57963.0,57962.0,0.003]
[1725257862522,0.462299,57963.0,57962.0,0.003]
[1725257862819,0.463299,57963.0,57962.0,0.011]
[1725257863028,0.463299,57963.0,57962.0,0.01983]
[1725257863884,0.704832,57963.0,57962.0,0.011]
[1725257864969,0.71843283,57963.0,57962.0,0.011]
[1725257865387,0.71843283,57963.0,57962.0,0.009]
[1725257865388,0.95996583,57963.0,57962.0,0.009]
[1725257865597,1.08451125,57963.0,57962.0,0.011]
[1725257866267,1.03896583,57963.0,57962.0,0.011]
[1725257868411,1.13216583,57963.0,57962.0,0.011]
[1725257869992,1.13216583,57963.0,57962.0,0.0118987]
[1725257870286,1.13298283,57963.0,57962.0,0.0118987]
[1725257872245,1.13298283,57963.0,57962.0,0.0088987]
[1725257872473,1.13298283,57963.0,57962.0,0.0108987]
[1725257872474,1.119382,57963.0,57962.0,0.0108987]
[1725257872954,1.026182,57963.0,57962.0,0.0108987]
[1725257873632,0.947182,57963.0,57962.0,0.0108987]
[1725257874948,0.947182,57963.0,57962.0,0.0118987]
[1725257876271,0.705649,57963.0,57962.0,0.0118987]
[1725257877723,0.778749,57963.0,57962.0,0.0118987]
[1725257883031,1.020282,57963.0,57962.0,0.0118987]
[1725257883275,1.03388349,57963.0,57962.0,0.0118987]
[1725257883741,1.13248349,57963.0,57962.0,0.0108987]
[1725257884450,1.13248349,57963.0,57962.0,0.0118987]
[1725257885596,1.118882,57963.0,57962.0,0.0118987]
[1725257886051,1.020282,57963.0,57962.0,0.0118987]
[1725257886730,0.778749,57963.0,57962.0,0.0118987]
[1725257887155,0.705649,57963.0,57962.0,0.0118987]
[1725257888146,0.705649,57963.0,57962.0,0.03004857]
[1725257889336,0.72406083,57963.0,57962.0,0.03004857]
[1725257890863,0.81666255,57963.0,57962.0,0.0118987]
[1725257891324,0.81666255,57963.0,57962.0,0.0108987]
[1725257891795,0.81666255,57963.0,57962.0,0.0118987]
[1725257892041,0.81666255,57963.0,57962.0,0.0108987]
[1725257892892,0.86845095,57963.0,57962.0,0.0108987]
[1725257893141,0.91106255,57963.0,57962.0,0.0118987]
[1725257893360,0.91106255,57963.0,57962.0,0.0108987]
[1725257893594,0.98863307,57963.0,57962.0,0.0108987]
[1725257894035,1.15259555,57963.0,57962.0,0.0108987]
[1725257894922,1.15259555,57963.0,57962.0,0.0088987]
[1725257895364,1.25622304,57963.0,57962.0,0.0108987]
[1725257895569,1.25622304,57963.0,57962.0,0.0118987]
[1725257895983,1.39412855,57963.0,57962.0,0.0088987]
[1725257896191,1.15259555,57963.0,57962.0,0.0088987]
[1725257896400,1.28212991,57963.0,57962.0,0.0088987]
[1725257897255,1.15259555,57963.0,57962.0,0.0108987]
[1725257898532,1.13899383,57963.0,57962.0,0.0118987]
[1725257899608,1.04459383,57963.0,57962.0,0.0118987]
[1725257902499,1.04459383,57963.0,57962.0,0.0088987]
[1725257902712,1.10374138,57963.0,57962.0,0.0088987]
[1725257903156,1.92714038,57963.0,57962.0,0.0088987]
[1725257903367,1.68560738,57963.0,57962.0,0.0088987]
[1725257903585,1.92714038,57963.0,57962.0,0.0088987]
[1725257903799,1.68560738,57963.0,57962.0,0.0088987]
[1725257904007,1.78100738,57963.0,57962.0,0.0088987]
[1725257904213,1.9366112,57963.0,57962.0,0.0088987]
[1725257904422,1.78100738,57963.0,57962.0,0.0088987]
[1725257904851,2.02254038,57963.0,57962.0,0.0088987]
[1725257906568,2.1781442,57963.0,57962.0,0.0088987]
[1725257906788,1.82676638,57963.0,57962.0,0.0088987]
[1725257907006,1.04459383,57963.0,57962.0,0.0088987]
[1725257907290,1.16246883,57963.0,57962.0,0.0088987]
[1725257907496,1.40400183,57963.0,57962.0,0.0088987]
[1725257908770,1.16246883,57963.0,57962.0,0.0088987]
[1725257910291,1.16246883,57963.0,57962.0,0.0108987]
[1725257910292,0.96559383,57963.0,57962.0,0.0108987]
[1725257911201,0.96559383,57963.0,57962.0,0.0118987]
[1725257911652,0.96559383,57963.0,57962.0,0.0108987]
[1725257911876,1.01113925,57963.0,57962.0,0.0108987]
[1725257912099,1.19413925,57963.0,57962.0,0.0088987]
[1725257912587,1.75050625,57963.0,57962.0,0.0088987]
[1725257913009,1.99203925,57963.0,57962.0,0.0088987]
[1725257913226,1.26852725,57963.0,57962.0,0.0088987]
[1725257913433,1.46451483,57963.0,57962.0,0.0088987]
[1725257913664,1.22298183,57963.0,57962.0,0.0088987]
[1725257914299,1.22298183,57963.0,57962.0,0.0098987]
[1725257915904,1.22298183,57963.0,57962.0,0.0088987]
[1725257916245,1.22298183,57963.0,57962.0,0.0098987]
[1725257916426,1.22298183,57963.0,57962.0,0.0088987]
[1725257918334,1.23658432,57963.0,57962.0,0.0088987]
[1725257918557,1.10584174,57963.0,57962.0,0.0088987]
[1725257918779,1.68770774,57963.0,57962.0,0.0088987]
[1725257918997,1.64216232,57963.0,57962.0,0.0088987]
[1725257919423,1.58183232,57963.0,57962.0,0.0088987]